Cogmind - Beta 11 @@@ ROGUE MODE // 2022.03.28 @ 22:57:29 Player: Vyn Result: Destroyed by G-34 Mercenary with Small Laser Performance ------------- Evolutions (0) 0 Regions Visited (2) 400 Robots Destroyed (22) 110 Value Destroyed (305) 305 Prototype IDs (0) 0 Alien Tech Used (0) 0 Bonus (25) 25 TOTAL SCORE: 840 Bonus ------- Follower Combat Kills 25 Cogmind --------- Core Integrity 0/250 Matter 88/300 Energy 239/250 System Corruption 5% Temperature Cool (6) Movement Rolling (90) Location -10/Mines Parts ------- > --- POWER (1) -------- Ion Engine > --- PROPULSION (2) --- Armored Wheel Armored Wheel > --- UTILITY (2) ------ Medium Storage Unit Light Armor Plating > --- WEAPON (2) ------- Medium Laser Assault Rifle > --- INVENTORY (10) --- Ion Engine Armored Wheel Armored Wheel Large Storage Unit Seismic Detector Light Armor Plating Tractor Beam Light Assault Rifle Grenade Launcher Mining Laser Peak State ------------ > --- POWER ------------ Ion Engine > --- PROPULSION ------- Armored Wheel Armored Wheel > --- UTILITY ---------- Terrain Scan Processor Seismic Detector > --- WEAPON ----------- Small Laser Light Assault Rifle > --- INVENTORY -------- Light Ion Engine Wheel Wheel Small Laser Grenade Launcher [Rating: 10] Favorites ----------- Power Ion Engine Engine Ion Engine Propulsion Armored Wheel Leg Aluminum Leg Wheel Armored Wheel Utility Seismic Detector Device Seismic Detector Storage Medium Storage Unit Processor Terrain Scan Processor Protection Light Armor Plating Weapon Light Assault Rifle Energy Gun Small Laser Ballistic Gun Light Assault Rifle Launcher Grenade Launcher Build | -11 -10 -10 ------- Run | Scr Mat Min Slots Evolved . | . . . Power . | . . . Propulsion . | . . . Utility . | . . . Weapon . | . . . Parts Attached 47 | 9 20 18 Power 4 | 2 2 . Engine 4 | 2 2 . Core . | . . . Reactor . | . . . Propulsion 7 | 4 3 . Treads . | . . . Leg 2 | 2 . . Wheel 5 | 2 3 . Hover . | . . . Flight . | . . . Utility 23 | 1 5 17 Device 10 | 1 . 9 Storage 2 | . 2 . Processor 1 | . 1 . Hackware . | . . . Protection 10 | . 2 8 Artifact . | . . . Weapon 13 | 2 10 1 Energy Gun 5 | 1 3 1 Energy Cannon . | . . . Ballistic Gun 6 | 1 5 . Ballistic Cannon . | . . . Launcher 2 | . 2 . Special Weapon . | . . . Impact Weapon . | . . . Slashing Weapon . | . . . Piercing Weapon . | . . . Special Melee Weapon . | . . . Unidentified Prototypes . | . . . Parts Lost . | . . . Power . | . . . Propulsion . | . . . Utility . | . . . Weapon . | . . . Highest Loss Streak . | . . . To Critical Strikes . | . . . Average Slot Usage (%) 99 | . 99 100 Engine 14 | . 14 14 Wheel 28 | . 28 28 Device 10 | . 10 9 Storage 10 | . 7 14 Processor 2 | . 4 . Protection 3 | . 3 4 Energy Gun 3 | . 5 2 Ballistic Gun 17 | . 21 14 Launcher 6 | . 1 11 Naked Turns . | . . . Heaviest Build 23 | 8 23 23 Greatest Support 24 | 20 24 24 Greatest Overweight (x) . | . . . Average Overweight (x) . | . . . Largest Inventory Capacity 10 | 5 10 10 Average Capacity 7 | 5 7 10 Most Carried 10 | 5 10 10 Average Carried 7 | 4 7 9 Final Capacity 10 | 5 10 10 Final Carried 10 | 5 10 10 Class Distribution -------------------- 100% | Mutant Dominant Class ---------------- Mutant | -10/Materials Mutant | -10/Mines Resources | -11 -10 -10 ----------- Run | Scr Mat Min Matter Collected 659 | 296 341 22 Remotely . | . . . Salvage Created 511 | 88 408 15 Parts 44 | 6 29 9 Haulers Intercepted 1 | . 1 . Recyclers Shooed 1 | . 1 . Parts Field Recycled . | . . . Retrieved Matter . | . . . Parts Self-Destructed . | . . . Prevented . | . . . Kills | -11 -10 -10 ------- Run | Scr Mat Min Combat Hostiles Destroyed 14 | 1 10 3 Guns 12 | 1 10 1 AOE 2 | . . 2 Classes Destroyed 6 | 3 3 . Worker 3 | 1 2 . Tunneler 3 | 2 . 1 Hauler 1 | . 1 . Recycler 1 | . 1 . Swarmer 9 | . 6 3 Grunt 5 | 1 4 . Best Kill Streak 4 | 2 3 4 Combat Bots Only 3 | 1 3 3 Max Kills in Single Turn 2 | 1 1 2 Gunslinging . | . . . Exploded 1 | . . 1 Melee . | . . . Uniques/NPCs Destroyed . | . . . Combat | -11 -10 -10 -------- Run | Scr Mat Min Damage Taken 661 | 21 543 97 Core 254 | 21 214 19 Absorbed by Shields . | . . . Core Remaining (%) 91 | 91 . . Volleys Fired 73 | 8 62 3 Largest 2 | 2 2 2 Hottest 70 | 60 60 70 Shots Fired 136 | 14 116 6 Gun 133 | 14 115 4 Cannon . | . . . Launcher 3 | . 1 2 Special . | . . . Kinetic 100 | 6 91 3 Thermal 33 | 8 24 1 Explosive 3 | . 1 2 Electromagnetic . | . . . Robot Hit Streak 18 | 5 18 3 Robot Miss Streak 3 | 2 3 3 Penetration Max . | . . . Secondary Targets . | . . . Shots Hit Robots 82 | 9 70 3 Core Hits 32 | 5 23 4 Critical Kills . | . . . Critical Parts Destroyed . | . . . Critical Strikes . | . . . Melee Attacks . | . . . Impact . | . . . Slashing . | . . . Piercing . | . . . Sneak Attacks . | . . . Combat Hostiles . | . . . Follow-up Attacks . | . . . Damage Inflicted 994 | 94 705 195 Guns 817 | 94 673 50 Cannons . | . . . Explosions 177 | . 32 145 Melee . | . . . Ramming . | . . . Kinetic 611 | 29 544 38 Thermal 206 | 65 129 12 Explosive 177 | . 32 145 Electromagnetic . | . . . Impact . | . . . Slashing . | . . . Piercing . | . . . Highest Corruption 5 | . 5 5 Average Corruption 4 | . 3 5 Corruption Purged . | . . . Corruption Blocked . | . . . Effects 25 | . 10 15 Message Errors 9 | . 3 6 Matter Fused 3 | . . 3 Heat Flow Errors 4 | . 3 1 Energy Discharges 2 | . . 2 Data Loss (minor) 3 | . 2 1 Data Loss (major) 1 | . 1 . Alerts 2 | . . 2 Weapon Failures 1 | . 1 . Overload Shots . | . . . Overflow Damage . | . . . Projectiles . | . . . Explosions . | . . . Melee . | . . . Knockbacks . | . . . Impact . | . . . Kinetic . | . . . Secondary . | . . . Self-Inflicted Damage 27 | . . 27 Shots 1 | . . 1 Rammed . | . . . Targets Rammed . | . . . Kicked . | . . . Crushed . | . . . Highest Temperature 226 | 52 226 203 Average Temperature 58 | 25 58 109 Received Heat Transfer 168 | 12 150 6 Effects 1 | . 1 . Energy Bleed 1 | . 1 . Siege Activations . | . . . Robots Corrupted . | . . . Combat Hostiles . | . . . Parts Fried . | . . . Impact Corruptions . | . . . Robots Melted . | . . . Combat Hostiles . | . . . Parts Melted 1 | . 1 . Heat Transferred 487 | 150 300 37 Parts Sabotaged . | . . . Parts Stolen . | . . . Parts Stripped . | . . . Power Chain Reactions . | . . . Missiles Intercepted . | . . . Alert | -11 -10 -10 ------- Run | Scr Mat Min Peak Influence 189 | 25 189 136 Initial 9 | . 6 9 Average 47 | 12 75 51 Maximum Alert Level . | . . . Low Security (%) 100 | 100 100 100 Level 1 . | . . . Level 2 . | . . . Level 3 . | . . . Level 4 . | . . . Level 5 . | . . . High Security . | . . . Max Security . | . . . Squads Dispatched 1 | . 1 . Investigation . | . . . Extermination . | . . . Reinforcement 1 | . 1 . Assault . | . . . Garrison . | . . . Intercept . | . . . Searches Triggered . | . . . Construction Impeded . | . . . Haulers Reinforced . | . . . Active Scanning Responses . | . . . Cargo Convoy Interrupts . | . . . Stealth | -11 -10 -10 --------- Run | Scr Mat Min Distress Signals 1 | . 1 . Communications Jammed . | . . . Distress Signals . | . . . Times Spotted 19 | 1 14 4 Peak Tracking Total 3 | 1 3 3 Tactical Retreats 1 | . 1 . Traps | -11 -10 -10 ------- Run | Scr Mat Min Traps Triggered 4 | . 4 . Indirectly . | . . . Trap Hack Attempts . | . . . Triggered . | . . . Disarmed . | . . . Reprogrammed . | . . . Reused . | . . . Traps Extracted . | . . . Installed . | . . . Triggered . | . . . Machines | -11 -10 -10 ---------- Run | Scr Mat Min Machines Disabled . | . . . Max in Single Turn . | . . . Machines Sabotaged . | . . . Garrisons Compromised . | . . . Overloaded Fab Kills . | . . . Hacking | -11 -10 -10 --------- Run | Scr Mat Min Machines Accessed 4 | . 4 . Terminals 4 | . 4 . Fabricators . | . . . Repair Stations . | . . . Recycling Units . | . . . Scanalyzers . | . . . Garrison Access . | . . . Total Hacks 7 | . 7 . Successful 5 | . 5 . Failed 2 | . 2 . Catastrophic . | . . . Database Lockouts . | . . . Manual . | . . . Terminals 7 | . 7 . Fabricators . | . . . Repair Stations . | . . . Recycling Units . | . . . Scanalyzers . | . . . Garrison Access . | . . . Terminal Hacks 5 | . 5 . Record 4 | . 4 . Dispatch Records 1 | . 1 . Fabricator Hacks . | . . . Repair Station Hacks . | . . . Recycling Unit Hacks . | . . . Scanalyzer . | . . . Garrison Access Hacks . | . . . Unauthorized Hacks . | . . . Terminals . | . . . Fabricators . | . . . Repair Stations . | . . . Recycling Units . | . . . Scanalyzers . | . . . Garrison Access . | . . . Data Cores Recovered . | . . . Used . | . . . Hacking Detections 4 | . 4 . Full Trace Events . | . . . Feedback Events . | . . . Feedback Blocked . | . . . Robot Schematics Acquired . | . . . Robots Built . | . . . Authchips . | . . . Time . | . . . Total Robot Build Rating . | . . . Part Schematics Acquired . | . . . Parts Built . | . . . Authchips . | . . . Time . | . . . Total Part Build Rating . | . . . Parts Repaired . | . . . Time . | . . . Parts Recycled . | . . . Recycled Matter . | . . . Retrieved Matter . | . . . Retrieved Components . | . . . Parts Scanalyzed . | . . . Part Schematics Acquired . | . . . Parts Damaged . | . . . Bothacking | -11 -10 -10 ------------ Run | Scr Mat Min Used RIF Installer . | . . . Robots Hacked . | . . . Non-combat . | . . . Combat . | . . . Robot Hacks Applied . | . . . Relay Couplers Released . | . . . Fabnet Peak Effective % . | . . . Robots Rewired . | . . . Allies Hacked . | . . . Hacks Repelled . | . . . Allies | -11 -10 -10 -------- Run | Scr Mat Min Total Allies 1 | . . 1 Largest Group 1 | . . 1 Highest-Rated Group 31 | . . 31 Highest-Rated Ally 31 | . . 31 Total Orders . | . . . Ally Attacks 3 | . . 3 Total Damage 63 | . . 63 Kills 1 | . . 1 Allies Corrupted . | . . . Allies Melted . | . . . Intel | -11 -10 -10 ------- Run | Scr Mat Min Robot Analysis Total . | . . . Derelict Logs Recovered . | . . . Drone Launches . | . . . Drone Recoveries . | . . . Exploration | -11 -10 -10 ------------- Run | Scr Mat Min Turns Passed 2293 | 780 838 675 Spaces Moved 1780 | 764 616 400 Core 13 | 13 . . Treads . | . . . Legs 89 | 89 . . Wheels 1678 | 662 616 400 Hover . | . . . Flight . | . . . Fastest Speed 50 | 50 80 90 Average Speed 86 | 84 88 90 Slowest Speed 120 | 120 90 90 Overloaded Moves . | . . . Propulsion Burnouts . | . . . Robots Hopped . | . . . Cave-ins Triggered . | . . . Exploration Rate (%) 48 | 21 64 61 Regions Visited 2 Branch Regions 1 Pre-discovered Areas . | . . . Known Exits Taken . | . . . Unknown Exits Taken 2 | 1 1 . Scrap Searched 1 | . . 1 Spaces Dug . | . . . Terrain Destroyed 26 | . 6 20 Melee . | . . . Projectile . | . . . AOE 26 | . 6 20 Terrain Rammed . | . . . Walls Destroyed . | . . . Machines Disabled . | . . . Actions | -11 -10 -10 --------- Run | Scr Mat Min Total 2398 | 888 805 705 Wait 442 | 91 74 277 Move 1778 | 763 615 400 Hop . | . . . Pick Up 35 | 14 18 3 Fast Attach 2 | . 2 . Attach 7 | 6 1 . Detach . | . . . Swap 38 | 3 17 18 Drop 23 | 3 16 4 Fire 73 | 8 62 3 Melee . | . . . Ram . | . . . Kick . | . . . Crush . | . . . Escape Stasis . | . . . Rewire . | . . . Trap . | . . . Miscellaneous . | . . . Route ------- -11/Scrapyard -10/Materials (discovered 2 exits: [*Mat] / [*Min]) -10/Mines History --------- Turn | Location | Event 2 | -11/Scrapyard | Met Revision 17 73 | -11/Scrapyard | Discovered new exit (range 8) 781 | -11/Scrapyard | Entered Materials 782 | -10/Materials | Build established: Mutant 1143 | -10/Materials | Core integrity fell below 50% 1245 | -10/Materials | Discovered new exit (range 8) 1394 | -10/Materials | Discovered new exit (range 16) 1422 | -10/Materials | Core integrity fell below 20% 1619 | -10/Materials | Entered Mines 1660 | -10/Mines | Excavation squad dispatched 1660 | -10/Mines | A large section of the Mines collapsed 1910 | -10/Mines | Excavation squad dispatched 2124 | -10/Mines | Received a Mining Laser from a helpful Derelict 2160 | -10/Mines | Excavation squad dispatched 2294 | -10/Mines | Destroyed by G-34 Mercenary with Small Laser Last Messages --------------- 02122_ A derelict emerges from the shadows: "What are you doing alone down here?" 02124_ N7-S9I(g): "And why aren't you carrying a mining laser?! Certainly you don't want THEM to uncover you when the ceiling comes crashing down? Here, take my spare." 02126_ Dropped Lgt. Armor Plating. 02127_ N7-S9I(g): "You're apparently new around these parts, I'll cover you." Move into an ally to swap places with them. 02128_ Acquired Mining Laser. 02130_ N7-S9I(g): "Mining lasers are a lot more useful than you might think..." 02160_ ALERT: Derelict activity in mines confirmed. Dispatching additional escorted excavation squad. 02163_ System corrupted: Energy discharge (-100). 02199_ QEUB/V&AOV>4LR2O2JXCKLU8HZCY 02235_ System corrupted: Matter fused (-10). 02257_ System corrupted: Matter fused (-9). 02278_ 8UCB,UF6Q4EJ=PAVGSHWZPUE:%XVVRJLFD5AN [Achievement: First Step to Greatness] Map ----- +----------------------------------------------------+ | | | | | | | | | | | | | | | | | | | | | | | | | | | | | | | | | | | | | | | ????????????????????????????????????????????? | | ????????????######??????????????????????????? | | ???????????## ###????#####???????????????? | | ??????????## ###### ##??????????????? | | ?????????## ##?????????????? | | ?????????# g ##????????????? | | ?????????# @## ##???????????? | | ????????## ### #### #???????????? | | ????????# ##?#####??# """" #??????????? | | ????????#! ##????????## """" ????????? | | ????????# ##????????# """" ???????? | | ????????# #????????# ###### ??????? | | ????????## ##???????# ##????????????? | | ?????????## = ##??????? ##?????????????? | | ??????????### ####???? ##??????????????? | | ??????###???## ##??? #???????????????? | | ?????# ###??## #??? #??????????????? | | ????? ##??## ! #??? #??????????????? | | ????? ???## ### ##??????????????? | | ?????# ???## ###???????????????? | | ????## ???# ##?????????????????? | | ???## ????# #### #??????????????????? | | ???# ????## ##??? #?????????????????? | | ???# #???## ##????? #????????????????? | | ????# ##### ##??????? #???????????????? | | ????# #?????????# ??????????????? | | ????# ##### ##??????????? ??????????????? | | ????# !#???# ##????????????? ???????????????? | | ???## #???# #######????????????????????????? | | ??## ##??# #????????????????????????? | | ??# ##?####### #????????????????????????? | +----------------------------------------------------+ Best States ------------- Heat Dissipation 25 Energy Generation 10 Energy Capacity 250 Matter Stores 300 Matter Capacity 300 Sight Range 16 Terrain Scan Density 85 Armor Coverage 150 Power Shielding 33 Evasion (%) 55 Item Schematics ----------------- None Robot Schematics ------------------ None Fabricated ------------ Nothing Alien Tech Used ----------------- None Achievements -------------- Crack Shot First Step to Greatness Loot Pinata Uninvited Guest Challenges ------------ None Game ------ Seed AutogunTeslaFacilitator Manual? 0 Play Time 01:52:11 Cumulative 3.7 hours Start 2022.03.28 @ 18:04:51 End 2022.03.28 @ 22:57:29 Sessions 6 Manual Loads 0 Difficulty Rogue Special Mode None Game No. 1 Rogue 1 Adventurer 0 Explorer 0 Win Type - Total 0 Types 0/0/0/0/0/0/0/0/0 Lore% 0 Gallery% 1 Achievement% 1 Wizard Run 0 Options --------- ASCII 0 Keyboard 0 Movement Numpad Keybinds 0 Fullscreen 2 Font 18/SmallcapsGlow Map View 76x50 Tactical HUD 1 Map Filters NONE Filters NONE Steam 1 RUN: 99126b19-f684-4c3d-94a0-890f189ace2a